fUST/lending_fUST_20260507
["ID","MTS","AMOUNT","RATE_DAILY","PERIOD"]
[421767095,1778122244000,-500.0,0.00013387,2]
[421767098,1778122244000,-501.39550801,0.00013387,2]
[421767100,1778122244000,-500.0,0.00013387,2]
[421767094,1778122244000,-500.0,0.00013387,2]
[421767097,1778122244000,-501.42083954,0.00013387,2]
[421767096,1778122244000,-501.47746352,0.00013387,2]
[421767099,1778122244000,-501.50723171,0.00013387,2]
[421767101,1778122244000,-500.76245439,0.00013387,2]
[421767103,1778122244000,-501.44575832,0.00013387,2]
[421767104,1778122244000,-501.05175186,0.00013387,2]
[421767106,1778122244000,-501.65742003,0.00013387,2]
[421767114,1778122244000,-500.0,0.00013387,2]
[421767111,1778122244000,-500.0,0.00013387,2]
[421767115,1778122244000,-151.0,0.000134,2]
[421767107,1778122244000,-500.0,0.00013387,2]
[421767108,1778122244000,-502.56535655,0.00013387,2]
[421767116,1778122244000,-413.60331168,0.00013415,2]
[421767110,1778122244000,-500.0,0.00013387,2]
[421767112,1778122244000,-640.81082455,0.00013387,2]
[421767109,1778122244000,-219.45446837,0.00013387,2]
[421767113,1778122244000,-500.0,0.00013387,2]
[421767118,1778122244000,-1652.75883348,0.00013415,2]
[421767117,1778122244000,-873.72963785,0.00013415,2]
[421767119,1778122244000,-3491.42363283,0.00013415,2]
[421767120,1778122244000,-151.726745,0.00013428,2]
[421767057,1778122244000,-500.0,0.00013387,2]
[421767089,1778122244000,-501.3769143,0.00013387,2]
[421767090,1778122244000,-500.0,0.00013387,2]
[421767105,1778122244000,-713.54,0.00013387,2]
[421767082,1778122244000,-501.11718138,0.00013387,2]
[421767056,1778122244000,-501.97249019,0.00013387,2]
[421767083,1778122244000,-500.0,0.00013387,2]
[421767055,1778122244000,-500.0,0.00013387,2]
[421767053,1778122244000,-500.0,0.00013387,2]
[421767062,1778122244000,-500.0,0.00013387,2]
[421767063,1778122244000,-500.0,0.00013387,2]
[421767064,1778122244000,-500.0,0.00013387,2]
[421767066,1778122244000,-502.30152341,0.00013387,2]
[421767065,1778122244000,-500.0,0.00013387,2]
[421767077,1778122244000,-501.98802424,0.00013387,2]
[421767074,1778122244000,-679.14,0.00013387,2]
[421767071,1778122244000,-501.61535091,0.00013387,2]
[421767072,1778122244000,-501.42462333,0.00013387,2]
[421767069,1778122244000,-500.0,0.00013387,2]
[421767070,1778122244000,-500.0,0.00013387,2]
[421767076,1778122244000,-500.0,0.00013387,2]
[421767075,1778122244000,-836.04,0.00013387,2]
[421767085,1778122244000,-1062.84,0.00013387,2]
[421767073,1778122244000,-500.0,0.00013387,2]
[421767084,1778122244000,-502.12230861,0.00013387,2]
[421767086,1778122244000,-500.0,0.00013387,2]
[421767091,1778122244000,-502.97413942,0.00013387,2]
[421767081,1778122244000,-500.0,0.00013387,2]
[421767087,1778122244000,-500.0,0.00013387,2]
[421767088,1778122244000,-928.03,0.00013387,2]
[421767079,1778122244000,-500.0,0.00013387,2]
[421767078,1778122244000,-501.32762525,0.00013387,2]
[421767068,1778122244000,-502.17874437,0.00013387,2]
[421767067,1778122244000,-618.57962763,0.00013387,2]
[421767080,1778122244000,-501.57748582,0.00013387,2]
[421767138,1778122245000,-182.64669649,0.00013488,2]
[421767134,1778122245000,-199.77277888,0.00013488,2]
[421767135,1778122245000,-500.0,0.00013488,2]
[421767141,1778122245000,-189.6173886,0.00013488,2]
[421767142,1778122245000,-647.46165813,0.00013488,2]
[421767151,1778122245000,-501.90645368,0.00013488,2]
[421767154,1778122245000,-502.15481695,0.00013488,2]
[421767155,1778122245000,-500.0,0.00013488,2]
[421767153,1778122245000,-502.40648648,0.00013488,2]
[421767152,1778122245000,-602.47499444,0.00013488,2]
[421767139,1778122245000,-337.8773339,0.00013488,2]
[421767150,1778122245000,-501.08046459,0.00013488,2]
[421767136,1778122245000,-192.14508444,0.00013488,2]
[421767129,1778122245000,-241.11237153,0.00013488,2]
[421767140,1778122245000,-500.0,0.00013488,2]
[421767131,1778122245000,-500.0,0.00013488,2]
[421767132,1778122245000,-500.0,0.00013488,2]
[421767133,1778122245000,-358.41446657,0.00013488,2]
[421767130,1778122245000,-490.63842176,0.00013488,2]
[421767126,1778122245000,-646.72,0.00013428,2]
[421767127,1778122245000,-2215.0,0.00013428,2]
[421767125,1778122245000,-151.0,0.00013428,2]
[421767124,1778122245000,-151.0,0.00013428,2]
[421767122,1778122245000,-151.0,0.00013428,2]
[421767123,1778122245000,-151.0,0.00013428,2]
[421767121,1778122245000,-154.953317,0.00013428,2]
[421767128,1778122245000,-720.0,0.00013463,2]
[421767156,1778122245000,-501.2808006,0.00013488,2]
[421767137,1778122245000,-242.87674167,0.00013488,2]
[421767143,1778122245000,-644.82846336,0.00013488,2]
[421767157,1778122245000,-500.0,0.00013488,2]
[421767149,1778122245000,-503.24146441,0.00013488,2]
[421767144,1778122245000,-501.24342858,0.00013488,2]
[421767181,1778122245000,-500.0,0.00013488,2]
[421767175,1778122245000,-501.76968055,0.00013488,2]
[421767174,1778122245000,-500.0,0.00013488,2]
[421767176,1778122245000,-353.3992877,0.00013488,2]
[421767173,1778122245000,-502.46376874,0.00013488,2]
[421767171,1778122245000,-502.03983963,0.00013488,2]
[421767180,1778122245000,-502.01573721,0.00013488,2]
[421767178,1778122245000,-502.21766428,0.00013488,2]
[421767179,1778122245000,-500.0,0.00013488,2]
[421767172,1778122245000,-502.22632627,0.00013488,2]
[421767170,1778122245000,-500.0,0.00013488,2]
[421767169,1778122245000,-431.62884342,0.00013488,2]
[421767168,1778122245000,-502.64265946,0.00013488,2]
[421767177,1778122245000,-500.0,0.00013488,2]
[421767167,1778122245000,-500.0,0.00013488,2]
[421767166,1778122245000,-502.37271605,0.00013488,2]
[421767145,1778122245000,-500.0,0.00013488,2]
[421767146,1778122245000,-500.0,0.00013488,2]
[421767159,1778122245000,-500.0,0.00013488,2]
[421767162,1778122245000,-502.09582037,0.00013488,2]
[421767147,1778122245000,-501.95542725,0.00013488,2]
[421767161,1778122245000,-535.97540869,0.00013488,2]
[421767158,1778122245000,-533.09652112,0.00013488,2]
[421767160,1778122245000,-502.19934395,0.00013488,2]
[421767163,1778122245000,-500.0,0.00013488,2]
[421767148,1778122245000,-500.0,0.00013488,2]
[421767165,1778122245000,-618.71154885,0.00013488,2]
[421767164,1778122245000,-501.26176729,0.00013488,2]
[421767254,1778122246000,-422.67785038,0.00013561,2]
[421767251,1778122246000,-500.0,0.00013561,2]
[421767259,1778122246000,-451.94066748,0.00013561,2]
[421767262,1778122246000,-1042.08,0.00013561,2]
[421767260,1778122246000,-500.0,0.00013561,2]
[421767269,1778122246000,-500.0,0.00013562,2]
[421767287,1778122246000,-624.76162699,0.00013598,2]
[421767264,1778122246000,-500.0,0.00013561,2]
[421767268,1778122246000,-500.0,0.00013561,2]
[421767261,1778122246000,-5180.5,0.00013561,2]
[421767267,1778122246000,-503.85195325,0.00013561,2]
[421767263,1778122246000,-385.87953691,0.00013561,2]
[421767271,1778122246000,-500.0,0.00013562,2]
[421767273,1778122246000,-41.60839499,0.00013562,2]
[421767270,1778122246000,-500.0,0.00013562,2]
[421767275,1778122246000,-500.0,0.00013562,2]
[421767284,1778122246000,-341.0,0.00013598,2]
[421767285,1778122246000,-341.0,0.00013598,2]
[421767283,1778122246000,-500.0,0.00013562,2]
[421767286,1778122246000,-25.23837301,0.00013598,2]
[421767255,1778122246000,-500.0,0.00013561,2]
[421767272,1778122246000,-286.63981126,0.00013562,2]
[421767250,1778122246000,-501.14753369,0.00013561,2]
[421767243,1778122246000,-501.1123311,0.00013561,2]
[421767252,1778122246000,-500.0,0.00013561,2]
[421767231,1778122246000,-501.70672417,0.00013561,2]
[421767230,1778122246000,-150.69055981,0.00013561,2]
[421767232,1778122246000,-501.54310244,0.00013561,2]
[421767234,1778122246000,-501.86339149,0.00013561,2]
[421767233,1778122246000,-502.78387423,0.00013561,2]
[421767236,1778122246000,-502.04347098,0.00013561,2]
[421767235,1778122246000,-502.16819952,0.00013561,2]
[421767244,1778122246000,-500.0,0.00013561,2]
[421767238,1778122246000,-502.32668783,0.00013561,2]
[421767237,1778122246000,-500.0,0.00013561,2]
[421767256,1778122246000,-500.0,0.00013561,2]
[421767239,1778122246000,-500.0,0.00013561,2]
[421767240,1778122246000,-501.44971015,0.00013561,2]
[421767242,1778122246000,-501.25363648,0.00013561,2]
[421767245,1778122246000,-353.53587569,0.00013561,2]
[421767247,1778122246000,-501.16038766,0.00013561,2]
[421767258,1778122246000,-500.0,0.00013561,2]
[421767246,1778122246000,-444.13947254,0.00013561,2]
[421767257,1778122246000,-500.0,0.00013561,2]
[421767248,1778122246000,-500.0,0.00013561,2]
[421767249,1778122246000,-502.30593295,0.00013561,2]
[421767253,1778122246000,-544.07719083,0.00013561,2]
[421767241,1778122246000,-502.22333206,0.00013561,2]
[421767276,1778122246000,-500.0,0.00013562,2]
[421767266,1778122246000,-599.73902074,0.00013561,2]
[421767277,1778122246000,-500.0,0.00013562,2]
[421767313,1778122246000,-166.0,0.00013598,2]
[421767303,1778122246000,-154.0,0.00013598,2]
[421767307,1778122246000,-154.0,0.00013598,2]
[421767308,1778122246000,-180.89139677,0.00013598,2]
[421767306,1778122246000,-154.0,0.00013598,2]
[421767315,1778122246000,-2685.40494975,0.00011624,2]
[421767316,1778122246000,-2314.59505025,0.00011624,2]
[421767318,1778122246000,-502.3194932,0.00013288,2]
[421767317,1778122246000,-500.0,0.00013014,2]
[421767319,1778122246000,-110.43232237,0.00013598,2]
[421767314,1778122246000,-539.56767763,0.00013598,2]
[421767321,1778122246000,-650.0,0.00013598,2]
[421767323,1778122246000,-650.0,0.00013598,2]
[421767322,1778122246000,-650.0,0.00013598,2]
[421767326,1778122246000,-650.0,0.00013598,2]
[421767327,1778122246000,-657.09365465,0.00013598,2]
[421767329,1778122246000,-151.0,0.000136,2]
[421767331,1778122246000,-31.1232908,0.00013621,2]
[421767320,1778122246000,-650.0,0.00013598,2]
[421767328,1778122246000,-151.0,0.000136,2]
[421767325,1778122246000,-650.0,0.00013598,2]
[421767330,1778122246000,-151.0,0.000136,2]
[421767324,1778122246000,-650.0,0.00013598,2]
[421767305,1778122246000,-154.0,0.00013598,2]
[421767278,1778122246000,-1084.19,0.00013562,2]
[421767312,1778122246000,-166.0,0.00013598,2]
[421767280,1778122246000,-617.02578245,0.00013562,2]
[421767282,1778122246000,-629.54559972,0.00013562,2]
[421767279,1778122246000,-683.42,0.00013562,2]
[421767281,1778122246000,-569.37,0.00013562,2]
[421767288,1778122246000,-341.0,0.00013598,2]
[421767291,1778122246000,-341.0,0.00013598,2]
[421767290,1778122246000,-650.0,0.00013598,2]
[421767289,1778122246000,-341.0,0.00013598,2]
[421767295,1778122246000,-650.0,0.00013598,2]
[421767297,1778122246000,-212.69773688,0.00013598,2]
[421767300,1778122246000,-154.0,0.00013598,2]
[421767304,1778122246000,-154.0,0.00013598,2]
[421767293,1778122246000,-650.0,0.00013598,2]
[421767301,1778122246000,-154.0,0.00013598,2]
[421767292,1778122246000,-388.63963382,0.00013598,2]
[421767298,1778122246000,-164.0,0.00013598,2]
[421767296,1778122246000,-650.0,0.00013598,2]
[421767299,1778122246000,-193.30386451,0.00013598,2]
[421767302,1778122246000,-154.0,0.00013598,2]
[421767309,1778122246000,-172.0,0.00013598,2]
[421767311,1778122246000,-166.0,0.00013598,2]
[421767310,1778122246000,-341.0,0.00013598,2]
[421767294,1778122246000,-650.0,0.00013598,2]
[421767373,1778122247000,-928.03,0.00013661,2]
[421767368,1778122247000,-500.0,0.00013661,2]
[421767371,1778122247000,-500.0,0.00013661,2]
[421767364,1778122247000,-500.0,0.00013661,2]
[421767362,1778122247000,-206.73360445,0.00013661,2]
[421767365,1778122247000,-836.04,0.00013661,2]
[421767370,1778122247000,-1062.84,0.00013661,2]
[421767369,1778122247000,-500.0,0.00013661,2]
[421767372,1778122247000,-500.0,0.00013661,2]
[421767363,1778122247000,-500.0,0.00013661,2]
[421767374,1778122247000,-500.0,0.00013661,2]
[421767385,1778122247000,-500.0,0.00013661,2]
[421767366,1778122247000,-500.0,0.00013661,2]
[421767375,1778122247000,-500.0,0.00013661,2]
[421767386,1778122247000,-1793.7759,0.00013661,2]
[421767384,1778122247000,-476.71723783,0.00013661,2]
[421767388,1778122247000,-151.0,0.00013671,2]
[421767376,1778122247000,-335.04520076,0.00013661,2]
[421767387,1778122247000,-151.0,0.00013671,2]
[421767377,1778122247000,-500.0,0.00013661,2]
[421767378,1778122247000,-500.0,0.00013661,2]
[421767360,1778122247000,-262.26379758,0.00013661,2]
[421767367,1778122247000,-343.00363602,0.00013661,2]
[421767361,1778122247000,-387.45295916,0.00013661,2]
[421767346,1778122247000,-500.0,0.00013661,2]
[421767356,1778122247000,-500.0,0.00013661,2]
[421767343,1778122247000,-500.0,0.00013661,2]
[421767335,1778122247000,-500.0,0.00013661,2]
[421767345,1778122247000,-500.0,0.00013661,2]
[421767336,1778122247000,-718.36,0.00013661,2]
[421767344,1778122247000,-500.0,0.00013661,2]
[421767332,1778122247000,-968.8767092,0.00013621,2]
[421767334,1778122247000,-500.0,0.00013661,2]
[421767339,1778122247000,-400.82807379,0.00013661,2]
[421767337,1778122247000,-500.0,0.00013661,2]
[421767341,1778122247000,-580.49890687,0.00013661,2]
[421767342,1778122247000,-500.0,0.00013661,2]
[421767340,1778122247000,-500.0,0.00013661,2]
[421767338,1778122247000,-500.0,0.00013661,2]
[421767381,1778122247000,-500.0,0.00013661,2]
[421767348,1778122247000,-172.51174037,0.00013661,2]
[421767347,1778122247000,-500.0,0.00013661,2]
[421767352,1778122247000,-1793.7759,0.00013387,2]
[421767354,1778122247000,-521.90177617,0.00013661,2]
[421767351,1778122247000,-1793.7759,0.00013113,2]
[421767359,1778122247000,-325.9661648,0.00013661,2]
[421767358,1778122247000,-500.0,0.00013661,2]
[421767353,1778122247000,-327.48825963,0.00013661,2]
[421767355,1778122247000,-500.0,0.00013661,2]
[421767357,1778122247000,-500.0,0.00013661,2]
[421767380,1778122247000,-713.54,0.00013661,2]
[421767333,1778122247000,-1000.0,0.00013621,2]
[421767383,1778122247000,-500.0,0.00013661,2]
[421767417,1778122247000,-168.069787,0.00013699,2]
[421767421,1778122247000,-168.069787,0.00013699,2]
[421767425,1778122247000,-151.0,0.00013699,2]
[421767420,1778122247000,-168.069787,0.00013699,2]
[421767424,1778122247000,-151.0,0.00013699,2]
[421767426,1778122247000,-193.269241,0.00013699,2]
[421767419,1778122247000,-168.069787,0.00013699,2]
[421767416,1778122247000,-168.069787,0.00013699,2]
[421767418,1778122247000,-168.069787,0.00013699,2]
[421767423,1778122247000,-168.069787,0.00013699,2]
[421767422,1778122247000,-168.069787,0.00013699,2]
[421767428,1778122247000,-632.782737,0.00013699,2]
[421767438,1778122247000,-632.782737,0.00013699,2]
[421767432,1778122247000,-632.782737,0.00013699,2]
[421767427,1778122247000,-632.782737,0.00013699,2]
[421767437,1778122247000,-632.782737,0.00013699,2]
[421767436,1778122247000,-632.782737,0.00013699,2]
[421767430,1778122247000,-632.782737,0.00013699,2]
[421767431,1778122247000,-632.782737,0.00013699,2]
[421767433,1778122247000,-632.782737,0.00013699,2]
[421767434,1778122247000,-632.782737,0.00013699,2]
[421767435,1778122247000,-632.782737,0.00013699,2]
[421767379,1778122247000,-500.0,0.00013661,2]
[421767415,1778122247000,-168.069787,0.00013699,2]
[421767412,1778122247000,-168.069787,0.00013699,2]
[421767429,1778122247000,-632.782737,0.00013699,2]
[421767411,1778122247000,-151.0,0.00013699,2]
[421767410,1778122247000,-1000.0,0.00013699,2]
[421767382,1778122247000,-500.0,0.00013661,2]
[421767389,1778122247000,-151.0,0.00013671,2]
[421767393,1778122247000,-500.0,0.00013698,2]
[421767390,1778122247000,-151.0,0.00013671,2]
[421767394,1778122247000,-500.0,0.00013698,2]
[421767392,1778122247000,-500.0,0.00013698,2]
[421767401,1778122247000,-500.0,0.00013698,2]
[421767400,1778122247000,-500.0,0.00013698,2]
[421767398,1778122247000,-500.0,0.00013698,2]
[421767396,1778122247000,-255.21512437,0.00013698,2]
[421767395,1778122247000,-500.0,0.00013698,2]
[421767391,1778122247000,-500.0,0.00013698,2]
[421767397,1778122247000,-500.0,0.00013698,2]
[421767399,1778122247000,-500.0,0.00013698,2]
[421767407,1778122247000,-413.37437964,0.00013698,2]
[421767409,1778122247000,-500.0,0.00013699,2]
[421767414,1778122247000,-168.069787,0.00013699,2]
[421767404,1778122247000,-500.0,0.00013698,2]
[421767408,1778122247000,-500.0,0.00013699,2]
[421767405,1778122247000,-500.0,0.00013698,2]
[421767402,1778122247000,-500.0,0.00013698,2]
[421767413,1778122247000,-168.069787,0.00013699,2]
[421767403,1778122247000,-500.0,0.00013698,2]
[421767406,1778122247000,-500.0,0.00013698,2]
[421767456,1778122248000,-445.79402455,0.00013762,2]
[421767467,1778122248000,-614.29137488,0.00013762,2]
[421767459,1778122248000,-500.0,0.00013762,2]
[421767455,1778122248000,-196.13192275,0.00013762,2]
[421767458,1778122248000,-500.0,0.00013762,2]
[421767463,1778122248000,-427.83062853,0.00013762,2]
[421767469,1778122248000,-500.0,0.00013762,2]
[421767460,1778122248000,-500.0,0.00013762,2]
[421767474,1778122248000,-462.61169883,0.00013762,2]
[421767472,1778122248000,-500.0,0.00013762,2]
[421767470,1778122248000,-500.0,0.00013762,2]
[421767475,1778122248000,-500.0,0.00013762,2]
[421767473,1778122248000,-500.0,0.00013762,2]
[421767468,1778122248000,-204.5246928,0.00013762,2]
[421767476,1778122248000,-371.4946607,0.00013762,2]
[421767461,1778122248000,-500.0,0.00013762,2]
[421767478,1778122248000,-500.0,0.00013762,2]
[421767471,1778122248000,-500.0,0.00013762,2]
[421767462,1778122248000,-603.33308739,0.00013762,2]
[421767450,1778122248000,-5808.0,0.000137,2]
[421767457,1778122248000,-500.0,0.00013762,2]
[421767477,1778122248000,-343.43568991,0.00013762,2]
[421767439,1778122248000,-632.782737,0.00013699,2]
[421767440,1778122248000,-632.782737,0.00013699,2]
[421767443,1778122248000,-632.782737,0.00013699,2]
[421767442,1778122248000,-632.782737,0.00013699,2]
[421767444,1778122248000,-632.782737,0.00013699,2]
[421767447,1778122248000,-1000.0,0.00013699,2]
[421767449,1778122248000,-151.0,0.000137,2]
[421767453,1778122248000,-500.0,0.00013762,2]
[421767452,1778122248000,-500.0,0.00013762,2]
[421767441,1778122248000,-632.782737,0.00013699,2]
[421767446,1778122248000,-632.782741,0.00013699,2]
[421767445,1778122248000,-632.782737,0.00013699,2]
[421767451,1778122248000,-223.78093431,0.00013762,2]
[421767454,1778122248000,-500.0,0.00013762,2]
[421767466,1778122248000,-500.0,0.00013762,2]
[421767465,1778122248000,-548.31512757,0.00013762,2]
[421767464,1778122248000,-500.0,0.00013762,2]
[421767448,1778122248000,-151.0,0.000137,2]
[421767479,1778122248000,-501.71542313,0.00013762,2]
[421767490,1778122248000,-500.0,0.00013834,2]
[421767489,1778122248000,-151.0,0.000138,2]
[421767506,1778122248000,-500.0,0.00013835,2]
[421767505,1778122248000,-360.92,0.00013835,2]
[421767517,1778122248000,-368.26243007,0.00013835,2]
[421767507,1778122248000,-498.63347256,0.00013835,2]
[421767516,1778122248000,-349.17268447,0.00013835,2]
[421767508,1778122248000,-500.0,0.00013835,2]
[421767513,1778122248000,-128.53320831,0.00013835,2]
[421767511,1778122248000,-112.44069064,0.00013835,2]
[421767515,1778122248000,-498.03639489,0.00013835,2]
[421767509,1778122248000,-500.0,0.00013835,2]
[421767514,1778122248000,-500.0,0.00013835,2]
[421767510,1778122248000,-387.55930936,0.00013835,2]
[421767512,1778122248000,-371.46679169,0.00013835,2]
[421767518,1778122248000,-321.47024906,0.00013835,2]
[421767521,1778122248000,-500.0,0.00013835,2]
[421767519,1778122248000,-178.52975094,0.00013835,2]
[421767520,1778122248000,-500.0,0.00013835,2]
[421767501,1778122248000,-500.0,0.00013834,2]
[421767498,1778122248000,-500.0,0.00013834,2]
[421767504,1778122248000,-500.0,0.00013834,2]
[421767499,1778122248000,-500.0,0.00013834,2]
[421767488,1778122248000,-151.0,0.000138,2]
[421767480,1778122248000,-553.38300624,0.00013762,2]
[421767482,1778122248000,-502.78582869,0.00013762,2]
[421767483,1778122248000,-151.0,0.00013762,2]
[421767484,1778122248000,-151.0,0.00013762,2]
[421767486,1778122248000,-176.097836,0.00013762,2]
[421767487,1778122248000,-151.0,0.000138,2]
[421767485,1778122248000,-151.0,0.00013762,2]
[421767522,1778122248000,-3622.22089745,0.00013835,2]
[421767491,1778122248000,-500.0,0.00013834,2]
[421767493,1778122248000,-500.0,0.00013834,2]
[421767495,1778122248000,-500.0,0.00013834,2]
[421767497,1778122248000,-500.0,0.00013834,2]
[421767492,1778122248000,-500.0,0.00013834,2]
[421767500,1778122248000,-500.0,0.00013834,2]
[421767503,1778122248000,-603.18,0.00013834,2]
[421767502,1778122248000,-500.0,0.00013834,2]
[421767496,1778122248000,-500.0,0.00013834,2]
[421767494,1778122248000,-356.8422483,0.00013834,2]
[421767481,1778122248000,-500.0,0.00013762,2]
[421767523,1778122279000,1004.0,0.00019726,120]
[421767560,1778122854000,1000.0,0.00019726,120]
[421767562,1778122876000,1000.0,0.00019726,120]
[421767563,1778122892000,1922.49,0.00011,30]
[421767575,1778123070000,188.53052489,0.00016359,120]
[421767586,1778123119000,2492.25759729,7.6e-05,2]
[421767597,1778123309000,154.27496146,0.00015433,120]
[421767612,1778123432000,-3319.81344616,8.515e-05,2]
[421767609,1778123432000,-837.46417458,8.514e-05,2]
[421767610,1778123432000,-1006.52854782,8.515e-05,2]
[421767605,1778123432000,-2386.13518796,8.43e-05,2]
[421767604,1778123432000,-4499.0,8.346e-05,2]
[421767620,1778123432000,-161.57704075,0.00012657,2]
[421767607,1778123432000,-1942.92481204,8.43e-05,2]
[421767606,1778123432000,-670.94,8.43e-05,2]
[421767603,1778123432000,-501.0,8.346e-05,2]
[421767608,1778123432000,-362.53582542,8.514e-05,2]
[421767618,1778123432000,-250.7055313,0.00010726,2]
[421767611,1778123432000,-673.65800602,8.515e-05,2]
[421767617,1778123432000,-381.57337777,0.00010644,2]
[421767614,1778123432000,-323.36726929,8.644e-05,2]
[421767616,1778123432000,-251.53898576,0.0001,2]
[421767613,1778123432000,-300.0,8.643e-05,2]
[421767622,1778123432000,-201.4347134,0.000129,2]
[421767615,1778123432000,-420.0,9.508e-05,2]
[421767625,1778123432000,-642.14873717,0.00012908,2]
[421767619,1778123432000,-439.77948624,0.00012644,2]
[421767628,1778123432000,-500.0,0.00012908,2]
[421767631,1778123432000,-500.0,0.00012908,2]
[421767633,1778123432000,-131.84084864,0.00012908,2]
[421767621,1778123432000,-1112.09598092,0.000129,2]
[421767707,1778123441000,-500.0,0.00012908,2]
[421767706,1778123441000,-368.15915136,0.00012908,2]
[421767709,1778123441000,-239.98544007,0.00012908,2]
[421767711,1778123441000,-303.45569701,0.00012908,2]
[421767708,1778123441000,-260.01455993,0.00012908,2]
[421767710,1778123441000,-500.0,0.00012908,2]
[421767751,1778123442000,-502.65,0.00012908,2]
[421767741,1778123442000,-488.51420932,0.00012779,2]
[421767742,1778123442000,-2044.30177734,0.00012779,2]
[421767744,1778123442000,-500.0,0.00012908,2]
[421767750,1778123442000,-500.0,0.00012908,2]
[421767755,1778123442000,-500.0,0.00012909,2]
[421767746,1778123442000,-185.32941447,0.00012908,2]
[421767748,1778123442000,-500.0,0.00012908,2]
[421767747,1778123442000,-500.0,0.00012908,2]
[421767743,1778123442000,-187.1252172,0.00012908,2]
[421767752,1778123442000,-500.0,0.00012908,2]
[421767753,1778123442000,-500.0,0.00012908,2]
[421767816,1778123443000,-246.40322743,0.0001291,2]
[421767815,1778123443000,-500.0,0.0001291,2]
[421767804,1778123443000,-500.0,0.0001291,2]
[421767814,1778123443000,-500.0,0.0001291,2]
[421767807,1778123443000,-500.0,0.0001291,2]
[421767803,1778123443000,-500.0,0.0001291,2]
[421767805,1778123443000,-500.0,0.0001291,2]
[421767813,1778123443000,-500.0,0.0001291,2]
[421767821,1778123443000,-500.0,0.0001291,2]
[421767802,1778123443000,-500.0,0.0001291,2]
[421767811,1778123443000,-621.25884186,0.0001291,2]
[421767808,1778123443000,-500.0,0.0001291,2]
[421767810,1778123443000,-500.0,0.0001291,2]
[421767818,1778123443000,-303.32,0.0001291,2]
[421767837,1778123443000,-500.0,0.0001291,2]
[421767831,1778123443000,-500.0,0.0001291,2]
[421767801,1778123443000,-500.0,0.0001291,2]
[421767834,1778123443000,-577.98,0.0001291,2]
[421767836,1778123443000,-500.0,0.0001291,2]
[421767839,1778123443000,-500.0,0.0001291,2]
[421767840,1778123443000,-500.0,0.0001291,2]
[421767841,1778123443000,-500.0,0.0001291,2]
[421767843,1778123443000,-500.0,0.0001291,2]
[421767853,1778123443000,-500.0,0.0001291,2]
[421767854,1778123443000,-500.0,0.0001291,2]
[421767845,1778123443000,-500.0,0.0001291,2]
[421767842,1778123443000,-500.0,0.0001291,2]
[421767852,1778123443000,-500.0,0.0001291,2]
[421767828,1778123443000,-1000.0,0.0001291,2]
[421767799,1778123443000,-500.0,0.0001291,2]
[421767785,1778123443000,-929.99,0.00012909,2]
[421767783,1778123443000,-500.0,0.00012909,2]
[421767756,1778123443000,-420.93350562,0.00012909,2]
[421767758,1778123443000,-500.0,0.00012909,2]
[421767757,1778123443000,-500.0,0.00012909,2]
[421767759,1778123443000,-500.0,0.00012909,2]
[421767772,1778123443000,-500.0,0.00012909,2]
[421767773,1778123443000,-500.0,0.00012909,2]
[421767761,1778123443000,-500.0,0.00012909,2]
[421767771,1778123443000,-500.0,0.00012909,2]
[421767766,1778123443000,-500.0,0.00012909,2]